fUST/lending_fUST_20240131
["ID","MTS","AMOUNT","RATE_DAILY","PERIOD"]
[313022836,1706638240057,-151.0,0.00030888,2]
[313022837,1706638240068,-9160.16469192,0.000309,3]
[313022838,1706638240077,-2066.10588636,0.00030998,2]
[313022839,1706638240086,-54929.91689518,0.00030999,3]
[313022840,1706638240096,-161.43393847,0.00031,4]
[313022841,1706638240107,-236745.24733842,0.00031,2]
[313022855,1706638241540,-3417.45886747,0.00031,2]
[313022856,1706638241552,-5735.57993673,0.00031,2]
[313023018,1706638246498,-4832.2,0.00031,2]
[313023021,1706638246513,-25957.30785907,0.00031,2]
[313023055,1706638515523,155.0,0.000205,2]
[313023056,1706638521059,175.43157375,0.000205,2]
[313023057,1706638522886,453.46449264,0.000205,2]
[313023058,1706638541032,1268.60769879,0.000205,2]
[313023059,1706638555841,3326.84002864,0.000205,2]
[313023060,1706638558001,261.45798965,0.000205,2]
[313023061,1706638562527,21712.69652796,0.000205,2]
[313023062,1706638579924,20899.05725792,0.000205,2]
[313023063,1706638581844,167.24069426,0.000205,2]
[313023071,1706639142400,228.50257596,0.000205,2]
[313023072,1706639199084,156.12328954,0.000205,2]
[313023073,1706639263962,342.63412088,0.000205,2]
[313023074,1706639267042,836.138924,0.00020467,2]
[313023075,1706639273196,979.26914291,0.00020466,2]
[313023076,1706639288969,979.26914291,0.00019319,2]
[313023077,1706639307083,978.31949543,0.00019319,2]
[313023119,1706639432549,-562.3258598,0.00021431,2]
[313023120,1706639432559,-260.67799851,0.00021432,2]
[313023121,1706639432569,-926.16,0.00021432,3]
[313023122,1706639432578,-771.8,0.00021432,3]
[313023123,1706639432587,-762.0429544,0.00021433,5]
[313023124,1706639432596,-1111.4,0.00021433,3]
[313023125,1706639432605,-19726.57954333,0.00021438,2]
[313023126,1706639432615,-20899.05725792,0.00021438,2]
[313023127,1706639432624,-175.43157375,0.00021439,2]
[313023128,1706639432633,-3326.84002864,0.00021439,2]
[313023129,1706639432642,-20925.73501298,0.00021439,2]
[313023130,1706639432651,-155.00620025,0.0002144,2]
[313023131,1706639432660,-4819.97769138,0.0002144,2]
[313023132,1706639432669,-7970.65505241,0.00021441,2]
[313023133,1706639432678,-18927.35300975,0.00021441,2]
[313023134,1706639432687,-494.9489016,0.00021442,2]
[313023135,1706639432696,-155.14514716,0.00021465,2]
[313023136,1706639432706,-277.10504725,0.00021496,2]
[313023137,1706639432714,-600.0,0.00021497,2]
[313023138,1706639432723,-445.01133808,0.00021497,2]
[313023139,1706639432732,-314.70220726,0.00021497,2]
[313023140,1706639432741,-466.42760995,0.00021497,2]
[313023141,1706639432750,-24900.0,0.00021498,2]
[313023142,1706639432759,-166.52761117,0.00022491,2]
[313023143,1706639432768,-156.66877586,0.00022502,2]
[313023144,1706639432777,-200.0,0.00022511,7]
[313023145,1706639432787,-155.27739018,0.00022516,2]
[313023146,1706639432796,-2106.51819104,0.00022544,2]
[313023147,1706639432805,-309.88995547,0.00022545,2]
[313023148,1706639432814,-29495.04027917,0.00022546,2]
[313023149,1706639432824,-280.0,0.00024762,7]
[313023150,1706639432833,-155.04831009,0.00025498,2]
[313023151,1706639432842,-1000.0,0.000255,2]
[313023152,1706639432851,-1000.0,0.000255,2]
[313023153,1706639432860,-1000.0,0.000255,2]
[313023154,1706639432869,-1000.0,0.000255,2]
[313023155,1706639432879,-1000.0,0.000255,2]
[313023156,1706639432888,-1000.0,0.000255,2]
[313023157,1706639432897,-1000.0,0.000255,2]
[313023158,1706639432906,-1000.0,0.000255,2]
[313023159,1706639432916,-1000.0,0.000255,2]
[313023160,1706639432925,-1000.0,0.000255,2]
[313023161,1706639432935,-1000.0,0.000255,2]
[313023162,1706639432945,-1000.0,0.000255,2]
[313023163,1706639432955,-1000.0,0.000255,2]
[313023164,1706639432965,-1000.0,0.000255,2]
[313023165,1706639432975,-1000.0,0.000255,2]
[313023166,1706639432987,-1000.0,0.000255,2]
[313023167,1706639432996,-1000.0,0.000255,2]
[313023168,1706639433006,-1000.0,0.000255,2]
[313023169,1706639433015,-1000.0,0.000255,2]
[313023170,1706639433026,-1000.0,0.000255,2]
[313023171,1706639433035,-1000.0,0.000255,2]
[313023172,1706639433045,-1000.0,0.000255,2]
[313023173,1706639433055,-1000.0,0.000255,2]
[313023174,1706639433064,-1000.0,0.000255,2]
[313023175,1706639433074,-1000.0,0.000255,2]
[313023176,1706639433083,-1000.0,0.000255,2]
[313023177,1706639433092,-1000.0,0.000255,2]
[313023178,1706639433101,-1000.0,0.000255,2]
[313023179,1706639433110,-1000.0,0.000255,2]
[313023180,1706639433119,-1000.0,0.000255,2]
[313023181,1706639433130,-1000.0,0.000255,2]
[313023182,1706639433139,-155.32436211,0.00025735,2]
[313023183,1706639433148,-235.56020887,0.00025736,2]
[313023184,1706639433157,-171.95327391,0.00025737,2]
[313023185,1706639433166,-166.92639514,0.00025738,2]
[313023186,1706639433175,-155.0201515,0.00026,2]
[313023187,1706639433184,-3748.11679382,0.00026,2]
[313023188,1706639433193,-261.02920205,0.00026,2]
[313023189,1706639433202,-156.29721489,0.00026001,2]
[313023190,1706639433211,-1265.96906703,0.00026001,2]
[313023191,1706639433220,-679.47851073,0.00026001,2]
[313023192,1706639433230,-155.0201515,0.00026001,2]
[313023193,1706639433240,-3683.4314931,0.00026002,2]
[313023244,1706639438978,-33306.69464816,0.00026002,2]
[313023245,1706639438987,-9022.08049442,0.00026004,2]
[313023246,1706639438997,-17167.31309097,0.00026004,2]
[313023247,1706639439006,-4183.7596779,0.00026004,2]
[313023248,1706639439015,-865.57431797,0.000264,2]
[313023249,1706639439025,-391.0,0.00027238,15]
[313023250,1706639439035,-632.2787159,0.0002772,2]
[313023251,1706639439043,-590.44438772,0.000289,2]
[313023252,1706639439053,-1934.46924266,0.00029,2]
[313023253,1706639439062,-620.61393579,0.00029106,2]
[313023254,1706639439072,-234.6232533,0.00029315,2]
[313023255,1706639439081,-178393.93463979,0.00029349,2]
[313023256,1706639439090,-3027.44573445,0.00029398,2]
[313023257,1706639439099,-3351.30374145,0.0002945,4]
[313023258,1706639439108,-160.0,0.000295,2]
[313023259,1706639439117,-300.0,0.0002959,2]
[313023260,1706639439127,-155.23328726,0.0002971,3]
[313023261,1706639439136,-150.0,0.000298,2]
[313023262,1706639439145,-200.0,0.00029962,15]
[313023263,1706639439154,-348.0,0.00029962,15]
[313023264,1706639439163,-150.98490151,0.00029977,7]
[313023265,1706639439173,-161.27818269,0.00029999,2]
[313023266,1706639439182,-245.08977524,0.00029999,2]
[313023267,1706639439191,-15512.56255838,0.00029999,2]
[313023268,1706639439200,-3340.9928411,0.0003,2]
[313023269,1706639439209,-150.0,0.0003,2]
[313023270,1706639439218,-244.61431091,0.0003,4]
[313023271,1706639439227,-146423.90831105,0.0003,4]
[313023272,1706639439237,-166.31773331,0.0003,10]
[313023273,1706639439246,-2374.95091436,0.0003,2]
[313023274,1706639439255,-689.49476826,0.0003,4]
[313023275,1706639439264,-160.0,0.0003,2]
[313023276,1706639439273,-237.0,0.0003,2]
[313023277,1706639439283,-910.12089925,0.0003,7]
[313023278,1706639439292,-1000.0,0.0003,2]
[313023279,1706639439301,-199.5795051,0.00030137,2]
[313023280,1706639439311,-199.5795051,0.00030137,2]
[313023281,1706639439320,-157.894736,0.00030137,2]
[313023282,1706639439329,-400.74955447,0.00030137,2]
[313023283,1706639439338,-1000.0,0.000303,3]
[313023284,1706639439347,-1000.0,0.000303,3]
[313023285,1706639439356,-1000.0,0.000303,3]
[313023286,1706639439365,-287.3135433,0.00030409,4]
[313023287,1706639439375,-50000.0,0.00030565,7]
[313023288,1706639439384,-150.98490151,0.00030589,4]
[313023289,1706639439393,-1000.0,0.000306,4]
[313023290,1706639439402,-1000.0,0.000306,4]
[313023291,1706639439411,-836.138924,0.00030701,2]
[313023292,1706639439420,-157.894736,0.00030746,2]
[313023293,1706639439429,-650.24391054,0.00030899,14]
[313023294,1706639439438,-79968.38782655,0.000309,2]
[313023296,1706639442588,-46858.52342248,0.000309,2]
[313023297,1706639442597,-723.596918,0.000309,11]
[313023298,1706639442607,-1000.0,0.000309,5]
[313023299,1706639442616,-500.0,0.0003092,11]
[313023300,1706639442625,-500.0,0.0003094,11]
[313023301,1706639442634,-500.0,0.0003096,11]
[313023302,1706639442643,-500.0,0.0003098,11]
[313023303,1706639442653,-1190.36678863,0.00030995,3]
[313023327,1706639443782,-199.5795051,0.00029315,2]
[313023329,1706639443791,-827.07454775,0.00030995,3]
[313023340,1706639446637,-2179.9945045,0.00021439,2]
[313023437,1706639734327,165.70017,0.00020152,2]
[313023438,1706639743235,418.069462,0.00020426,2]
[313023439,1706639775441,300.0,0.00020426,2]
[313023440,1706639791449,300.0,0.00020426,2]
[313023441,1706640033194,7621.6830743,0.00020381,2]
[313023444,1706640596538,209.034731,0.00019924,2]
[313023490,1706640631724,-904.83318342,0.0002091,2]
[313023492,1706640631734,-1295.2641633,0.0002091,2]
[313023494,1706640631743,-2155.4441525,0.00020911,2]
[313023497,1706640631784,-1162.32804307,0.00020911,2]
[313023501,1706640631796,-17607.96281741,0.00020911,2]
[313023504,1706640631805,-562.3258598,0.00020911,2]
[313023506,1706640631814,-7970.65505241,0.00020912,2]
[313023508,1706640631823,-295.30186863,0.00020912,2]
[313023510,1706640631833,-608.78469268,0.00020912,2]
[313023512,1706640631842,-2806.26126984,0.00020912,2]
[313023514,1706640631852,-589.1714927,0.00020913,2]
[313023516,1706640631862,-3490.39781052,0.00020913,2]
[313023518,1706640631871,-1431.85,0.00020914,3]
[313023520,1706640631880,-1193.21,0.00020914,3]
[313023522,1706640631889,-994.34,0.00020914,3]
[313023524,1706640631898,-494.9489016,0.00020918,2]
[313023526,1706640631907,-1268.60769879,0.00020918,2]
[313023528,1706640631916,-260.67799851,0.00020919,2]
[313023530,1706640631925,-1199.86892495,0.0002092,2]
[313023532,1706640631934,-262.71950685,0.00020921,2]
[313023534,1706640631943,-302.3601781,0.00020922,2]
[313023536,1706640631952,-155.23217948,0.00020923,2]
[313023537,1706640631962,-83813.3038538,0.00020924,2]
[313023539,1706640631971,-537.55553765,0.00020929,2]
[313023541,1706640631981,-225.9965034,0.00021025,2]
[313023543,1706640631990,-518.25289995,0.00021033,2]
[313023545,1706640631999,-500.0,0.00021033,2]
[313023547,1706640632008,-349.66911918,0.00021033,2]
[313023549,1706640632017,-494.45704232,0.00021033,2]
[313023551,1706640632027,-271.9488561,0.00021033,2]
[313023553,1706640632036,-1000.38303454,0.00021056,2]
[313023555,1706640632045,-2077.00381468,0.00021259,2]
[313023557,1706640632054,-2106.51819104,0.00021259,2]
[313023559,1706640632064,-8401.58442005,0.00021263,2]
[313023674,1706640637768,-250.02294539,0.00021263,2]
[313023675,1706640637781,-336.967,0.00021263,2]
[313023676,1706640637828,-10890.45695272,0.00021263,2]
[313023677,1706640637838,-155.0201515,0.00021385,2]
[313023678,1706640637848,-155.00465014,0.000214,2]
[313023679,1706640637857,-155.00465014,0.000214,2]
[313023680,1706640637866,-9422.03265037,0.00021439,2]
[313023681,1706640637876,-5598.40634948,0.00021439,2]
[313023682,1706640637885,-4090.53090943,0.00021439,2]
[313023683,1706640637894,-212.09151868,0.00021439,2]
[313023684,1706640637904,-235.01682964,0.00021439,2]
[313023685,1706640637913,-1828.0659992,0.00021439,2]
[313023687,1706640637923,-2086.73700022,0.00021439,2]
[313023689,1706640637932,-200.0,0.00021967,7]
[313023691,1706640637941,-537.55553764,0.00022139,2]
[313023692,1706640637950,-537.55553764,0.00023348,2]
[313023693,1706640637960,-4020.32440334,0.00024,2]
[313023694,1706640637969,-280.0,0.00024164,7]
[313023695,1706640637978,-537.55553764,0.00024558,2]
[313023696,1706640637987,-1000.0,0.000255,2]
[313023697,1706640637996,-1000.0,0.000255,2]
[313023698,1706640638006,-1000.0,0.000255,2]
[313023699,1706640638015,-1000.0,0.000255,2]
[313023700,1706640638024,-15512.56255838,0.00025726,2]
[313023701,1706640638034,-537.55553764,0.00025767,2]
[313023702,1706640638043,-287.3135433,0.00025867,2]
[313023703,1706640638052,-245.08977524,0.00025986,2]
[313023704,1706640638061,-828.62,0.00025991,3]
[313023705,1706640638070,-471.27847094,0.00025999,2]
[313023706,1706640638079,-165.88813996,0.00026,2]
[313023707,1706640638088,-191.036015,0.00026,2]
[313023708,1706640638097,-155.82449874,0.00026,2]
[313023709,1706640638106,-265.25547221,0.00026,2]
[313023710,1706640638115,-397.82280254,0.00026,2]
[313023711,1706640638124,-180.04943139,0.00026001,2]
[313023712,1706640638133,-241.77436975,0.00026001,2]
[313023713,1706640638142,-15925.99196946,0.00026001,2]
[313023714,1706640638152,-183.96156831,0.00026002,20]
[313023715,1706640638161,-280.11858007,0.00026002,2]
[313023716,1706640638170,-765.0593475,0.00026002,2]
[313023717,1706640638180,-108316.57853067,0.00026002,7]
[313023718,1706640638192,-11279.73432117,0.00026002,7]
[313023719,1706640638201,-155.34378165,0.00026002,2]
[313023720,1706640638210,-1510.34002083,0.00026003,2]
[313023721,1706640638219,-50000.0,0.00026048,2]
[313023722,1706640638228,-50000.0,0.00026048,2]
[313023723,1706640638237,-50000.0,0.00026048,2]
[313023724,1706640638246,-59730.348839,0.00026048,2]
[313023725,1706640638255,-5473.09939964,0.00026048,2]
[313023726,1706640638264,-957.79239494,0.00026048,2]
[313023727,1706640638273,-821.73299318,0.000264,2]
[313023728,1706640638283,-391.0,0.0002658,15]
[313023729,1706640638292,-400.74955447,0.00027397,2]
[313023730,1706640638302,-630.08664966,0.0002772,2]
[313023731,1706640638311,-161.27818269,0.00028,2]
[313023732,1706640638320,-151.0,0.00028201,2]
[313023733,1706640638330,-594.54366579,0.00028798,5]
[313023734,1706640638340,-953.51298828,0.000288,2]
[313023735,1706640638352,-1751.98385727,0.0002899,4]
[313023736,1706640638362,-1934.46924266,0.00029,2]
[313023737,1706640638371,-221.89831408,0.00029103,4]
[313023738,1706640638380,-620.50433248,0.00029106,2]
[313023739,1706640638389,-200.0,0.00029238,15]
[313023740,1706640638398,-348.0,0.00029238,15]
[313023741,1706640638407,-79968.38782655,0.00029248,2]
[313023742,1706640638417,-156.6260754,0.00029315,2]
[313023743,1706640638428,-306.0,0.00029315,2]
[313023744,1706640638437,-199.5795051,0.00029315,2]
[313023745,1706640638446,-325.9281118,0.00029315,2]
[313023746,1706640638456,-153.0,0.00029315,2]
[313023747,1706640638465,-199.5795051,0.00029315,2]
[313023748,1706640638474,-153.0,0.00029315,2]
[313023749,1706640638483,-199.5795051,0.00029315,2]
[313023750,1706640638492,-153.0,0.00029315,2]
[313023751,1706640638502,-199.5795051,0.00029315,2]
[313023752,1706640638511,-199.5795051,0.00029315,2]
[313023753,1706640638520,-153.0,0.00029315,2]
[313023754,1706640638531,-197.4681653,0.00029315,2]
[313023755,1706640638540,-399.1590102,0.00029315,2]
[313023756,1706640638549,-66973.93291889,0.00029349,2]
[313023757,1706640638559,-5000.0,0.00029349,5]
[313023758,1706640638568,-178393.93463979,0.00029357,2]
[313023759,1706640638577,-16509.35645489,0.00029357,2]
[313023760,1706640638586,-151.0,0.00029357,2]
[313023761,1706640638595,-151.0,0.00029357,2]
[313023762,1706640638604,-151.591208,0.00029357,2]
[313023763,1706640638614,-151.0,0.00029357,2]
[313023764,1706640638623,-151.0,0.00029357,2]
[313023765,1706640638632,-151.0,0.00029357,2]
[313023766,1706640638641,-151.0,0.00029357,2]
[313023767,1706640638650,-154.777918,0.00029357,2]
[313023768,1706640638659,-392.274165,0.00029357,2]
[313023769,1706640638668,-392.274165,0.00029357,2]
[313023770,1706640638677,-5094.225014,0.00029357,2]
[313023771,1706640638686,-5094.225014,0.00029357,2]
[313023772,1706640638695,-1248.694555,0.00029357,2]
[313023773,1706640638705,-1248.694555,0.00029357,2]
[313023774,1706640638714,-7811.90112,0.00029357,2]
[313023775,1706640638723,-7811.90112,0.00029357,2]
[313023776,1706640638820,-151.0,0.00029357,2]
[313023777,1706640638830,-151.0,0.00029357,2]
[313023778,1706640638839,-151.0,0.00029357,2]
[313023779,1706640638848,-9980.73920279,0.00029436,5]
[313023780,1706640638857,-306.9764062,0.00029589,2]
[313023781,1706640638867,-300.0,0.000297,2]
[313023782,1706640638877,-262.80883366,0.0002971,3]
[313023783,1706640638886,-151.0,0.00029829,7]
[313023784,1706640638897,-209.034731,0.00029885,2]
[313023785,1706640638907,-400.0,0.000299,14]
[313023786,1706640638916,-3340.9928411,0.0003,2]
[313023787,1706640638925,-650.24391054,0.0003,14]
[313023788,1706640638934,-689.49476826,0.0003,4]
[313023789,1706640638943,-244.61431091,0.0003,4]
[313023790,1706640638953,-146423.90831105,0.0003,4]
[313023791,1706640638963,-2374.95091436,0.0003,2]
[313023792,1706640638972,-166.31773331,0.0003,10]
[313023793,1706640638982,-151.0,0.0003,2]
[313023794,1706640638992,-157.040348,0.0003,2]
[313023795,1706640639002,-151.0,0.0003,2]
[313023796,1706640639011,-151.0,0.0003,2]
[313023797,1706640639020,-151.0,0.0003,2]
[313023798,1706640639030,-151.0,0.0003,2]
[313023799,1706640639040,-392.274165,0.0003,2]
[313023800,1706640639051,-392.274165,0.0003,2]
[313023801,1706640639060,-5094.225014,0.0003,2]
[313023802,1706640639069,-5094.225014,0.0003,2]
[313023803,1706640639079,-910.12089925,0.0003,7]
[313023804,1706640639088,-1248.694555,0.0003,2]
[313023805,1706640639098,-1248.694555,0.0003,2]
[313023806,1706640639107,-7811.90112,0.0003,2]
[313023807,1706640639116,-7811.90112,0.0003,2]
[313023808,1706640639125,-151.0,0.0003,2]
[313023809,1706640639135,-151.0,0.0003,2]
[313023810,1706640639144,-237.0,0.0003,2]
[313023811,1706640639153,-151.0,0.0003,2]
[313023812,1706640639163,-157.894736,0.00030137,2]
[313023813,1706640639173,-151.0,0.00030356,2]
[313023814,1706640639183,-151.0,0.00030437,4]
[313023815,1706640639192,-165.0,0.00030439,2]
[313023816,1706640639202,-203.505,0.00030439,2]
[313023817,1706640639212,-620.02521662,0.00030561,2]
[313023818,1706640639222,-50000.0,0.00030678,7]
[313023819,1706640639232,-157.894736,0.00030746,2]
[313023820,1706640639241,-283.11385267,0.00030897,2]
[313023821,1706640639251,-155.0310062,0.00030897,4]
[313023822,1706640639260,-1584.05603829,0.00030897,4]
[313023823,1706640639269,-679.47851073,0.00030897,4]
[313023824,1706640639278,-169.87302706,0.00030897,4]
[313023825,1706640639288,-240.61520942,0.00030897,4]
[313023826,1706640639297,-606.80025969,0.00030897,4]
[313023827,1706640639306,-210.17037059,0.00030897,4]
[313023828,1706640639315,-158.68795435,0.00030899,4]
[313023829,1706640639325,-276.15240234,0.00030995,3]
[313023830,1706640639334,-308.81555806,0.00030995,4]
[313023831,1706640639344,-11033.00619666,0.00030997,4]
[313023832,1706640639358,-568.15921395,0.00030997,4]
[313023833,1706640639367,-200.0,0.00030997,4]
[313023834,1706640639376,-302.78377719,0.00030997,4]
[313023835,1706640639386,-216.35114077,0.00030997,4]
[313023836,1706640639397,-251.60042923,0.00030997,4]
[313023837,1706640639406,-3969.42099078,0.00030997,4]
[313023838,1706640639415,-259.90877522,0.00030997,4]
[313023839,1706640639427,-600.0,0.00030997,4]
[313023840,1706640639436,-2045.80640197,0.00030997,4]
[313023841,1706640639445,-309.9689732,0.00030997,4]
[313023842,1706640639454,-7384.14849766,0.00030997,4]
[313023843,1706640639464,-2066.10588636,0.00030998,2]
[313023844,1706640639473,-176.52378004,0.00030998,4]
[313023845,1706640639483,-259.30675866,0.00030998,4]
[313023846,1706640639492,-203.99646444,0.00030998,4]
[313023847,1706640639502,-155.76848449,0.00030998,4]
[313023848,1706640639511,-524.08518411,0.00030998,4]
[313023849,1706640639520,-161.33066592,0.00030998,4]
[313023850,1706640639530,-155.10837766,0.00030998,4]
[313023851,1706640639540,-309.92919017,0.00030998,4]
[313023852,1706640639549,-156.71976133,0.00030998,4]
[313023853,1706640639559,-687.7818797,0.00030998,4]
[313023854,1706640639568,-156.29322352,0.00030998,4]
[313023855,1706640639578,-158.36167953,0.00030998,4]
[313023856,1706640639587,-159.22305658,0.00030999,4]
[313023857,1706640639596,-175.15360279,0.00030999,4]
[313023858,1706640639606,-298.91673192,0.00030999,4]
[313023859,1706640639615,-162.67544914,0.00030999,4]
[313023860,1706640639624,-224.71678552,0.00030999,4]
[313023861,1706640639633,-155.19934607,0.00030999,4]
[313023862,1706640639642,-155.25728071,0.00030999,4]
[313023863,1706640639651,-303.34496546,0.00030999,4]
[313023864,1706640639661,-201.14559042,0.00030999,4]
[313023865,1706640639670,-193.60117205,0.00030999,4]
[313023866,1706640639679,-1944.999999,0.00031,2]
[313023867,1706640639688,-161.43393847,0.00031,4]
[313023868,1706640639697,-150.0,0.00031,2]
[313023869,1706640639706,-982.82266304,0.00031,4]
[313023870,1706640639715,-455.09948544,0.00031,4]
[313023871,1706640639725,-1200.0,0.00031,4]
[313023872,1706640639734,-213.42126249,0.00031,4]
[313023873,1706640639743,-298.83997699,0.00031,7]
[313023874,1706640639753,-1645.18621578,0.00031,7]
[313023875,1706640639762,-5000.0,0.00031,7]
[313023876,1706640639772,-545.581274,0.00031,7]
[313023877,1706640639782,-390.9356714,0.00031,7]
[313023878,1706640639791,-1000.0,0.00031,31]
[313023879,1706640639800,-500.0,0.00031,11]
[313023880,1706640639809,-1500.0,0.00031,2]
[313023881,1706640639819,-151.0,0.00031059,2]
[313023882,1706640639828,-157.894736,0.00031355,2]
[313023883,1706640639838,-154.0,0.000315,30]
[313023884,1706640639848,-151.569421,0.00031625,2]
[313023885,1706640639857,-151.725805,0.00031625,2]
[313023886,1706640639867,-191.898187,0.00031625,2]
[313023887,1706640639876,-183.776013,0.00031625,2]
[313023888,1706640639886,-151.0,0.00031678,2]
[313023889,1706640639895,-151.0,0.00031678,2]
[313023891,1706640639905,-210.6676,0.00031678,2]
[313023892,1706640639914,-151.0,0.00031678,2]
[313023893,1706640639924,-392.274165,0.00031678,2]
[313023895,1706640639933,-392.274165,0.00031678,2]
[313023897,1706640639943,-5094.225014,0.00031678,2]
[313023899,1706640639952,-5094.225014,0.00031678,2]
[313023901,1706640639961,-1248.694555,0.00031678,2]
[313023903,1706640639970,-1248.694555,0.00031678,2]
[313023905,1706640639979,-7811.90112,0.00031678,2]
[313023907,1706640639988,-1812.97215119,0.00031678,2]
[313023909,1706640640001,-5998.92896881,0.00031678,2]
[313023911,1706640640011,-152.035045,0.00031678,2]
[313023913,1706640640020,-151.0,0.00031678,2]
[313023915,1706640640030,-188.0,0.00031678,2]
[313023917,1706640640039,-1556.13261224,0.00031678,4]
[313023918,1706640640048,-1010.71957794,0.00031873,2]
[313023919,1706640640057,-33233.16498743,0.000319,3]
[313023920,1706640640065,-157.894736,0.00031963,2]
[313023921,1706640640074,-186.93447094,0.00031997,4]
[313023922,1706640640084,-370.04024356,0.00031998,7]
[313023923,1706640640093,-208.56063369,0.00031998,4]
[313023924,1706640640103,-261.92632285,0.00032,4]
[313023925,1706640640112,-209.90971776,0.00032,4]
[313023926,1706640640121,-177.25672105,0.00032,4]
[313023927,1706640640131,-155.80457916,0.00032,4]
[313023928,1706640640140,-172.32028985,0.00032,4]
[313023929,1706640640148,-3519.18054344,0.00032,4]
[313023930,1706640640157,-1668.52798984,0.00032,2]
[313023931,1706640640166,-3582.45312356,0.00032,4]
[313023932,1706640640175,-76154.56567329,0.00032,10]
[313023933,1706640640184,-402388.8006218,0.00032,15]
[313023934,1706640640195,-4446.22071116,0.00032,15]
[313023941,1706640640943,-1000.0,0.00025726,2]
[313023942,1706640640954,-1000.0,0.00025726,2]
[313023943,1706640640963,-210.589811,0.00029357,2]
[313023944,1706640640972,-210.589811,0.0003,2]
[313023945,1706640640981,-210.589811,0.00031678,2]
[313023946,1706640640990,-498.84096057,0.00032,15]
[313023947,1706640641002,-2134.4794123,0.00032,15]
[313023948,1706640641013,-44874.62497301,0.00032,15]
[313023949,1706640641098,-2657.65001381,0.00032,15]
[313023950,1706640641109,-529.68975891,0.00032,15]
[313023951,1706640641122,-8455.28208892,0.00032,15]
[313023964,1706640643870,-294.56411098,0.00021048,2]
[313023965,1706640643880,-260.67799851,0.00021048,2]
[313023966,1706640643890,-1197.09254656,0.00021048,2]
[313023967,1706640643900,-274.19777213,0.00021048,2]
[313023968,1706640643910,-1000.0,0.00025726,2]
[313023969,1706640643919,-1000.0,0.00025726,2]
[313023970,1706640643928,-210.589811,0.00029357,2]
[313023971,1706640643937,-210.589811,0.0003,2]
[313023972,1706640643946,-7590.15365859,0.00032,15]
[313023973,1706640643958,-2374.10701609,0.00032,15]
[313024005,1706640645875,-3022.81629331,0.00021048,2]
[313024007,1706640645885,-276.6707132,0.00021048,2]
[313024009,1706640645894,-234.6232533,0.00029315,2]
[313024011,1706640645903,-210.589811,0.00031678,2]
[313024013,1706640645912,-690.51,0.0003199,3]
[313024015,1706640645922,-210.0,0.00032,2]
[313024017,1706640645931,-130317.33770174,0.00032,15]
[313024019,1706640645939,-150.0,0.00032,2]
[313024021,1706640645948,-151.0,0.00032,2]
[313024023,1706640645957,-226.96975,0.00032,2]
[313024025,1706640645966,-151.0,0.00032,2]
[313024027,1706640645975,-151.0,0.00032,2]
[313024029,1706640645984,-500.0,0.00032,7]
[313024031,1706640645993,-151.0,0.00032,2]
[313024033,1706640646002,-151.0,0.00032,2]
[313024035,1706640646011,-151.0,0.00032,2]
[313024037,1706640646020,-392.274165,0.00032,2]
[313024039,1706640646030,-392.274165,0.00032,2]
[313024041,1706640646039,-1248.694555,0.00032,2]
[313024043,1706640646049,-1248.694555,0.00032,2]
[313024045,1706640646058,-7811.90112,0.00032,2]
[313024047,1706640646067,-7811.90112,0.00032,2]
[313024049,1706640646076,-151.0,0.00032,2]
[313024051,1706640646086,-500.0,0.00032,2]
[313024053,1706640646096,-210.589811,0.00032,2]
[313024055,1706640646105,-210.589811,0.00032,2]
[313024057,1706640646114,-620.00126083,0.00032089,2]
[313024059,1706640646123,-200.0,0.00032162,15]
[313024061,1706640646132,-200.0,0.00032162,15]
[313024063,1706640646142,-368.0,0.00032162,15]
[313024065,1706640646150,-150.86405234,0.00032499,2]